[Event "Titled Tuesday Blitz November 22 Late 2022"]
[White "Paiva, Henrique M A Albergaria"]
[Black "Hardaway, Brewington"]
[WhiteFideId "1920995"]
[BlackFideId "30941849"]
[WhiteElo "1953"]
[BlackElo "2159"]
[Result "0-1"]
[Round "07"]
[TimeControl "180+1"]
[Date "2022.11.23"]
[WhiteClock "0:00:02"]
[BlackClock "0:00:13"]

1. Nf3 {[%clk 0:02:54]}  Nf6 {[%clk 0:03:00]} 2. d4 {[%clk 0:02:53]}  e6 {[%clk 0:03:00]} 3. c4 {[%clk 0:02:51]}  d5 {[%clk 0:03:00]} 4. Nc3 {[%clk 0:02:51]}  Bb4 {[%clk 0:03:01]} 5. Bg5 {[%clk 0:02:50]}  O-O {[%clk 0:03:01]} 6. e3 {[%clk 0:02:51]}  h6 {[%clk 0:03:01]} 7. Bh4 {[%clk 0:02:49]}  g5 {[%clk 0:03:01]} 8. Bg3 {[%clk 0:02:49]}  Ne4 {[%clk 0:03:01]} 9. Rc1 {[%clk 0:02:47]}  c5 {[%clk 0:02:58]} 10. Bd3 {[%clk 0:02:42]}  Nc6 {[%clk 0:02:47]} 11. cxd5 {[%clk 0:02:40]}  Qxd5 {[%clk 0:02:41]} 12. O-O {[%clk 0:02:35]}  Bxc3 {[%clk 0:02:38]} 13. bxc3 {[%clk 0:02:34]}  c4 {[%clk 0:02:38]} 14. Bxe4 {[%clk 0:02:23]}  Qxe4 {[%clk 0:02:36]} 15. Qe2 {[%clk 0:02:06]}  b5 {[%clk 0:02:30]} 16. Nd2 {[%clk 0:02:06]}  Qg6 {[%clk 0:02:28]} 17. e4 {[%clk 0:02:04]}  Bb7 {[%clk 0:02:21]} 18. Rb1 {[%clk 0:02:03]}  a6 {[%clk 0:02:21]} 19. Nxc4 {[%clk 0:02:00]}  Ne7 {[%clk 0:01:57]} 20. Nd6 {[%clk 0:01:55]}  Bc6 {[%clk 0:01:56]} 21. Rfd1 {[%clk 0:01:47]}  h5 {[%clk 0:01:53]} 22. f3 {[%clk 0:01:43]}  f5 {[%clk 0:01:49]} 23. exf5 {[%clk 0:01:38]}  Nxf5 {[%clk 0:01:49]} 24. Nxf5 {[%clk 0:01:36]}  Rxf5 {[%clk 0:01:47]} 25. Re1 {[%clk 0:01:33]}  Bd5 {[%clk 0:01:47]} 26. Be5 {[%clk 0:01:21]}  Rc8 {[%clk 0:01:45]} 27. Rbc1 {[%clk 0:01:15]}  Rc4 {[%clk 0:01:44]} 28. Red1 {[%clk 0:01:05]}  h4 {[%clk 0:01:44]} 29. h3 {[%clk 0:01:05]}  Kh7 {[%clk 0:01:41]} 30. Rd3 {[%clk 0:01:00]}  Ra4 {[%clk 0:01:41]} 31. Rd2 {[%clk 0:00:57]}  Rc4 {[%clk 0:01:41]} 32. Bh2 {[%clk 0:00:49]}  Qe8 {[%clk 0:01:34]} 33. Qd3 {[%clk 0:00:47]}  Qc6 {[%clk 0:01:33]} 34. Re2 {[%clk 0:00:45]}  b4 {[%clk 0:01:27]} 35. Re5 {[%clk 0:00:45]}  Rxc3 {[%clk 0:01:28]} 36. Rxc3 {[%clk 0:00:41]}  Qxc3 {[%clk 0:01:28]} 37. Qxc3 {[%clk 0:00:36]}  bxc3 {[%clk 0:01:28]} 38. Re3 {[%clk 0:00:37]}  Bxa2 {[%clk 0:01:21]} 39. Rxc3 {[%clk 0:00:37]}  Rb5 {[%clk 0:01:20]} 40. Be5 {[%clk 0:00:35]}  Bd5 {[%clk 0:01:13]} 41. g3 {[%clk 0:00:28]}  Rb1+ {[%clk 0:01:12]} 42. Kf2 {[%clk 0:00:27]}  Rh1 {[%clk 0:01:11]} 43. gxh4 {[%clk 0:00:26]}  gxh4 {[%clk 0:01:10]} 44. Kg2 {[%clk 0:00:26]}  Rd1 {[%clk 0:01:10]} 45. Rc7+ {[%clk 0:00:23]}  Kh6 {[%clk 0:01:10]} 46. Ra7 {[%clk 0:00:23]}  Rd2+ {[%clk 0:01:07]} 47. Kf1 {[%clk 0:00:20]}  Ra2 {[%clk 0:01:07]} 48. Bf4+ {[%clk 0:00:16]}  Kg6 {[%clk 0:01:07]} 49. Be5 {[%clk 0:00:14]}  Bxf3 {[%clk 0:01:07]} 50. Rg7+ {[%clk 0:00:14]}  Kf5 {[%clk 0:01:07]} 51. Rf7+ {[%clk 0:00:15]}  Ke4 {[%clk 0:01:07]} 52. Ke1 {[%clk 0:00:13]}  Ke3 {[%clk 0:01:07]} 53. Bf4+ {[%clk 0:00:13]}  Kxd4 {[%clk 0:01:06]} 54. Bg5 {[%clk 0:00:11]}  Bg2 {[%clk 0:00:58]} 55. Bxh4 {[%clk 0:00:11]}  Bxh3 {[%clk 0:00:57]} 56. Bf2+ {[%clk 0:00:11]}  Kd5 {[%clk 0:00:57]} 57. Rd7+ {[%clk 0:00:10]}  Kc6 {[%clk 0:00:57]} 58. Rh7 {[%clk 0:00:09]}  Bf5 {[%clk 0:00:57]} 59. Rg7 {[%clk 0:00:08]}  Kb5 {[%clk 0:00:56]} 60. Rb7+ {[%clk 0:00:08]}  Kc4 {[%clk 0:00:56]} 61. Rc7+ {[%clk 0:00:08]}  Kd3 {[%clk 0:00:56]} 62. Rd7+ {[%clk 0:00:08]}  Ke4 {[%clk 0:00:57]} 63. Rd4+ {[%clk 0:00:08]}  Kf3 {[%clk 0:00:54]} 64. Bh4 {[%clk 0:00:08]}  Ke3 {[%clk 0:00:40]} 65. Rd6 {[%clk 0:00:03]}  a5 {[%clk 0:00:34]} 66. Bg5+ {[%clk 0:00:02]}  Ke4 {[%clk 0:00:34]} 67. Rd2 {[%clk 0:00:01]}  Ra1+ {[%clk 0:00:32]} 68. Kf2 {[%clk 0:00:01]}  a4 {[%clk 0:00:31]} 69. Re2+ {[%clk 0:00:02]}  Kd5 {[%clk 0:00:31]} 70. Bf6 {[%clk 0:00:02]}  Ra3 {[%clk 0:00:30]} 71. Rd2+ {[%clk 0:00:02]}  Kc4 {[%clk 0:00:31]} 72. Be7 {[%clk 0:00:03]}  Rc3 {[%clk 0:00:29]} 73. Bf6 {[%clk 0:00:03]}  Rh3 {[%clk 0:00:16]} 74. Rd4+ {[%clk 0:00:02]}  Kb3 {[%clk 0:00:16]} 75. Rd6 {[%clk 0:00:02]}  a3 {[%clk 0:00:16]} 76. Rb6+ {[%clk 0:00:02]}  Ka4 {[%clk 0:00:16]} 77. Ra6+ {[%clk 0:00:02]}  Kb4 {[%clk 0:00:17]} 78. Be7+ {[%clk 0:00:01]}  Kb5 {[%clk 0:00:14]} 79. Rxa3 {[%clk 0:00:02]}  Rh6 {[%clk 0:00:14]} 80. Rg3 {[%clk 0:00:01]}  Kc6 {[%clk 0:00:14]} 81. Bg5 {[%clk 0:00:01]}  Rh5 {[%clk 0:00:13]} 82. Bf4 {[%clk 0:00:01]}  Kd5 {[%clk 0:00:13]} 83. Ke3 {[%clk 0:00:02]}  Rh1 {[%clk 0:00:13]} 84. Rg1 {[%clk 0:00:02]}  Rxg1 {[%clk 0:00:13]} 0-1


[Site "https://www.chess.com"]

[Event "Titled Tuesday Blitz November 22 Late 2022"]
[White "Palencia Morales, Wilson Guillermo"]
[Black "Samarth, J Rao"]
[WhiteFideId "4401859"]
[BlackFideId "46652370"]
[WhiteElo "2160"]
[BlackElo "1564"]
[Result "0-1"]
[Round "07"]
[TimeControl "180+1"]
[Date "2022.11.23"]
[WhiteClock "0:00:03"]
[BlackClock "0:00:08"]

1. d4 {[%clk 0:02:53]}  d5 {[%clk 0:02:56]} 2. c4 {[%clk 0:02:54]}  e6 {[%clk 0:02:55]} 3. Nf3 {[%clk 0:02:55]}  Nf6 {[%clk 0:02:55]} 4. Nc3 {[%clk 0:02:55]}  c6 {[%clk 0:02:56]} 5. Bg5 {[%clk 0:02:55]}  h6 {[%clk 0:02:56]} 6. Bxf6 {[%clk 0:02:55]}  Qxf6 {[%clk 0:02:55]} 7. e3 {[%clk 0:02:56]}  g6 {[%clk 0:02:54]} 8. Qc2 {[%clk 0:02:56]}  Nd7 {[%clk 0:02:55]} 9. Be2 {[%clk 0:02:54]}  Bg7 {[%clk 0:02:55]} 10. O-O {[%clk 0:02:54]}  O-O {[%clk 0:02:55]} 11. e4 {[%clk 0:02:52]}  dxe4 {[%clk 0:02:50]} 12. Nxe4 {[%clk 0:02:51]}  Qe7 {[%clk 0:02:51]} 13. Rfe1 {[%clk 0:02:51]}  e5 {[%clk 0:02:45]} 14. dxe5 {[%clk 0:02:46]}  Nxe5 {[%clk 0:02:46]} 15. Nxe5 {[%clk 0:02:46]}  Qxe5 {[%clk 0:02:45]} 16. Nc3 {[%clk 0:02:43]}  Qg5 {[%clk 0:02:32]} 17. Bf3 {[%clk 0:02:41]}  Bf5 {[%clk 0:02:29]} 18. Be4 {[%clk 0:02:41]}  Be6 {[%clk 0:02:29]} 19. b3 {[%clk 0:02:39]}  Rad8 {[%clk 0:02:27]} 20. Rad1 {[%clk 0:02:35]}  Rxd1 {[%clk 0:02:26]} 21. Nxd1 {[%clk 0:02:28]}  Rd8 {[%clk 0:02:27]} 22. Ne3 {[%clk 0:02:25]}  Qa5 {[%clk 0:02:16]} 23. Re2 {[%clk 0:02:16]}  Qe5 {[%clk 0:02:10]} 24. g3 {[%clk 0:02:10]}  Bh3 {[%clk 0:02:04]} 25. Re1 {[%clk 0:02:03]}  Qa5 {[%clk 0:01:52]} 26. Re2 {[%clk 0:01:56]}  Qe5 {[%clk 0:01:42]} 27. Qb1 {[%clk 0:01:49]}  Qc3 {[%clk 0:01:38]} 28. Bg2 {[%clk 0:01:46]}  Be6 {[%clk 0:01:36]} 29. Rc2 {[%clk 0:01:39]}  Qd3 {[%clk 0:01:34]} 30. Rc1 {[%clk 0:01:38]}  Qxb1 {[%clk 0:01:33]} 31. Rxb1 {[%clk 0:01:38]}  Rd2 {[%clk 0:01:34]} 32. a4 {[%clk 0:01:37]}  a5 {[%clk 0:01:32]} 33. Bf1 {[%clk 0:01:34]}  Bc3 {[%clk 0:01:26]} 34. Rc1 {[%clk 0:01:26]}  Bb4 {[%clk 0:01:17]} 35. Rc2 {[%clk 0:01:21]}  Rd4 {[%clk 0:01:11]} 36. Be2 {[%clk 0:01:21]}  Bc5 {[%clk 0:01:10]} 37. Kf1 {[%clk 0:01:18]}  Bh3+ {[%clk 0:01:07]} 38. Kg1 {[%clk 0:01:16]}  h5 {[%clk 0:01:06]} 39. Bf1 {[%clk 0:01:11]}  Be6 {[%clk 0:00:42]} 40. h4 {[%clk 0:01:10]}  Kf8 {[%clk 0:00:39]} 41. Be2 {[%clk 0:01:10]}  Ke7 {[%clk 0:00:39]} 42. Kf1 {[%clk 0:01:08]}  Kd6 {[%clk 0:00:39]} 43. Rc1 {[%clk 0:01:02]}  Rd2 {[%clk 0:00:37]} 44. Rd1 {[%clk 0:01:02]}  Bxe3 {[%clk 0:00:22]} 45. fxe3 {[%clk 0:01:02]}  Rxd1+ {[%clk 0:00:22]} 46. Bxd1 {[%clk 0:01:03]}  Bf5 {[%clk 0:00:13]} 47. Ke1 {[%clk 0:01:02]}  Kc5 {[%clk 0:00:13]} 48. Kd2 {[%clk 0:01:02]}  Kb4 {[%clk 0:00:13]} 49. Kc1 {[%clk 0:00:29]}  Kc3 {[%clk 0:00:12]} 50. c5 {[%clk 0:00:30]}  Kd3 {[%clk 0:00:04]} 51. b4 {[%clk 0:00:22]}  axb4 {[%clk 0:00:04]} 52. Kb2 {[%clk 0:00:22]}  Kxe3 {[%clk 0:00:04]} 53. Kb3 {[%clk 0:00:22]}  Kd2 {[%clk 0:00:03]} 54. Bf3 {[%clk 0:00:20]}  Ke3 {[%clk 0:00:03]} 55. Bd1 {[%clk 0:00:20]}  Kf2 {[%clk 0:00:03]} 56. Kxb4 {[%clk 0:00:18]}  Kxg3 {[%clk 0:00:04]} 57. Ka5 {[%clk 0:00:19]}  Kxh4 {[%clk 0:00:04]} 58. Kb6 {[%clk 0:00:19]}  Kg3 {[%clk 0:00:02]} 59. a5 {[%clk 0:00:20]}  h4 {[%clk 0:00:03]} 60. Kxb7 {[%clk 0:00:20]}  Bd3 {[%clk 0:00:03]} 61. Ba4 {[%clk 0:00:16]}  h3 {[%clk 0:00:03]} 62. Bxc6 {[%clk 0:00:17]}  h2 {[%clk 0:00:03]} 63. Bd5 {[%clk 0:00:17]}  f5 {[%clk 0:00:03]} 64. c6 {[%clk 0:00:17]}  Be4 {[%clk 0:00:03]} 65. Bxe4 {[%clk 0:00:11]}  fxe4 {[%clk 0:00:04]} 66. c7 {[%clk 0:00:11]}  h1=Q {[%clk 0:00:05]} 67. c8=Q {[%clk 0:00:11]}  e3+ {[%clk 0:00:04]} 68. Kb6 {[%clk 0:00:11]}  Qb1+ {[%clk 0:00:03]} 69. Ka7 {[%clk 0:00:10]}  Qe4 {[%clk 0:00:02]} 70. Qc3 {[%clk 0:00:06]}  Kf2 {[%clk 0:00:01]} 71. Qf6+ {[%clk 0:00:05]}  Kg2 {[%clk 0:00:02]} 72. Qg5+ {[%clk 0:00:03]}  Kh3 {[%clk 0:00:03]} 73. Qh6+ {[%clk 0:00:02]}  Kg3 {[%clk 0:00:03]} 74. Qg5+ {[%clk 0:00:02]}  Kf3 {[%clk 0:00:04]} 75. Qf6+ {[%clk 0:00:02]}  Kg4 {[%clk 0:00:04]} 76. Qd8 {[%clk 0:00:01]}  e2 {[%clk 0:00:05]} 77. Qd2 {[%clk 0:00:01]}  e1=Q {[%clk 0:00:04]} 78. Qd7+ {[%clk 0:00:02]}  Qe6 {[%clk 0:00:04]} 79. Qd4+ {[%clk 0:00:03]}  Q1e4 {[%clk 0:00:04]} 80. Qg1+ {[%clk 0:00:03]}  Kf5 {[%clk 0:00:03]} 81. Qf2+ {[%clk 0:00:04]}  Kg5 {[%clk 0:00:04]} 82. Qg3+ {[%clk 0:00:04]}  Q4g4 {[%clk 0:00:04]} 83. Qc3 {[%clk 0:00:03]}  Qd7+ {[%clk 0:00:03]} 84. Kb6 {[%clk 0:00:03]}  Qgd4+ {[%clk 0:00:03]} 85. Qxd4 {[%clk 0:00:03]}  Qxd4+ {[%clk 0:00:04]} 86. Kb5 {[%clk 0:00:04]}  Qa1 {[%clk 0:00:05]} 87. a6 {[%clk 0:00:03]}  Kf4 {[%clk 0:00:06]} 88. a7 {[%clk 0:00:04]}  g5 {[%clk 0:00:07]} 89. a8=Q {[%clk 0:00:03]}  Qxa8 {[%clk 0:00:08]} 0-1


[Site "https://www.chess.com"]

[Event "Titled Tuesday Blitz November 22 Late 2022"]
[White "Papp, Levente"]
[Black "Baskakov, Egor"]
[WhiteFideId "751243"]
[BlackFideId "24197866"]
[WhiteElo "2380"]
[BlackElo "2211"]
[Result "0-1"]
[Round "07"]
[TimeControl "180+1"]
[Date "2022.11.22"]
[WhiteClock "0:00:14"]
[BlackClock "0:01:44"]

1. b3 {[%clk 0:03:00]}  Nf6 {[%clk 0:02:58]} 2. Bb2 {[%clk 0:03:01]}  e6 {[%clk 0:02:58]} 3. Nf3 {[%clk 0:03:01]}  d5 {[%clk 0:02:59]} 4. c4 {[%clk 0:03:00]}  Be7 {[%clk 0:02:59]} 5. g3 {[%clk 0:03:00]}  O-O {[%clk 0:03:00]} 6. Bg2 {[%clk 0:03:00]}  b6 {[%clk 0:03:00]} 7. O-O {[%clk 0:03:00]}  Bb7 {[%clk 0:03:00]} 8. d4 {[%clk 0:02:58]}  Ne4 {[%clk 0:03:00]} 9. Nbd2 {[%clk 0:02:56]}  f5 {[%clk 0:03:00]} 10. Ne5 {[%clk 0:02:54]}  Nd7 {[%clk 0:02:58]} 11. Ndf3 {[%clk 0:02:49]}  Bf6 {[%clk 0:02:45]} 12. Nxd7 {[%clk 0:02:35]}  Qxd7 {[%clk 0:02:46]} 13. Ne5 {[%clk 0:02:36]}  Qe7 {[%clk 0:02:43]} 14. f3 {[%clk 0:02:26]}  Nd6 {[%clk 0:02:39]} 15. Rc1 {[%clk 0:02:19]}  dxc4 {[%clk 0:02:37]} 16. bxc4 {[%clk 0:02:18]}  Rfd8 {[%clk 0:02:37]} 17. Qb3 {[%clk 0:02:16]}  Nf7 {[%clk 0:02:34]} 18. c5 {[%clk 0:02:06]}  Bd5 {[%clk 0:02:30]} 19. Qa3 {[%clk 0:01:54]}  Bxe5 {[%clk 0:02:14]} 20. dxe5 {[%clk 0:01:53]}  b5 {[%clk 0:02:15]} 21. Qa5 {[%clk 0:01:13]}  a6 {[%clk 0:02:08]} 22. Ba3 {[%clk 0:00:27]}  Nxe5 {[%clk 0:02:01]} 23. c6 {[%clk 0:00:25]}  Qf7 {[%clk 0:01:53]} 24. e4 {[%clk 0:00:23]}  Bc4 {[%clk 0:01:52]} 25. Rfd1 {[%clk 0:00:23]}  Nxc6 {[%clk 0:01:50]} 26. Qc3 {[%clk 0:00:24]}  fxe4 {[%clk 0:01:47]} 27. fxe4 {[%clk 0:00:21]}  Qh5 {[%clk 0:01:44]} 28. e5 {[%clk 0:00:14]} 0-1


[Site "https://www.chess.com"]

[Event "Titled Tuesday Blitz November 22 Late 2022"]
[White "Paravyan, David"]
[Black "Maksimovic, Bojan"]
[WhiteFideId "4194985"]
[BlackFideId "14408120"]
[WhiteElo "2546"]
[BlackElo "2447"]
[Result "1-0"]
[Round "07"]
[TimeControl "180+1"]
[Date "2022.11.22"]
[WhiteClock "0:01:34"]
[BlackClock "0:00:03"]

1. e4 {[%clk 0:03:00]}  c5 {[%clk 0:02:58]} 2. Nf3 {[%clk 0:03:00]}  e6 {[%clk 0:02:59]} 3. d4 {[%clk 0:03:01]}  cxd4 {[%clk 0:02:59]} 4. Nxd4 {[%clk 0:03:02]}  a6 {[%clk 0:02:59]} 5. c3 {[%clk 0:03:01]}  Nc6 {[%clk 0:02:54]} 6. Nxc6 {[%clk 0:03:01]}  bxc6 {[%clk 0:02:54]} 7. Bd3 {[%clk 0:03:01]}  d5 {[%clk 0:02:52]} 8. O-O {[%clk 0:03:01]}  Nf6 {[%clk 0:02:51]} 9. Qe2 {[%clk 0:02:49]}  Be7 {[%clk 0:02:47]} 10. Bf4 {[%clk 0:02:43]}  O-O {[%clk 0:02:43]} 11. Nd2 {[%clk 0:02:42]}  Bb7 {[%clk 0:02:32]} 12. e5 {[%clk 0:02:42]}  Nd7 {[%clk 0:02:31]} 13. Qh5 {[%clk 0:02:43]}  g6 {[%clk 0:02:30]} 14. Qh6 {[%clk 0:02:39]}  f5 {[%clk 0:01:48]} 15. Nf3 {[%clk 0:02:33]}  Rf7 {[%clk 0:01:46]} 16. Rae1 {[%clk 0:02:31]}  Qf8 {[%clk 0:01:39]} 17. Qh3 {[%clk 0:02:27]}  a5 {[%clk 0:01:35]} 18. Bh6 {[%clk 0:02:25]}  Qd8 {[%clk 0:01:32]} 19. Qg3 {[%clk 0:02:25]}  Ba6 {[%clk 0:01:26]} 20. Bxa6 {[%clk 0:02:25]}  Rxa6 {[%clk 0:01:27]} 21. h4 {[%clk 0:02:23]}  Kh8 {[%clk 0:01:24]} 22. Qh3 {[%clk 0:01:56]}  Rb6 {[%clk 0:01:19]} 23. b3 {[%clk 0:01:55]}  Nc5 {[%clk 0:01:07]} 24. Ng5 {[%clk 0:01:52]}  Bxg5 {[%clk 0:01:01]} 25. Bxg5 {[%clk 0:01:53]}  Qf8 {[%clk 0:00:55]} 26. h5 {[%clk 0:01:50]}  Kg8 {[%clk 0:00:22]} 27. Bf6 {[%clk 0:01:50]}  Rxf6 {[%clk 0:00:06]} 28. exf6 {[%clk 0:01:51]}  Qxf6 {[%clk 0:00:06]} 29. Qe3 {[%clk 0:01:49]}  Qe7 {[%clk 0:00:04]} 30. Qd4 {[%clk 0:01:49]}  Nd7 {[%clk 0:00:02]} 31. Re3 {[%clk 0:01:46]}  e5 {[%clk 0:00:02]} 32. Rfe1 {[%clk 0:01:43]}  e4 {[%clk 0:00:02]} 33. hxg6 {[%clk 0:01:37]}  hxg6 {[%clk 0:00:03]} 34. Rh3 {[%clk 0:01:38]}  Qf6 {[%clk 0:00:03]} 35. Qd2 {[%clk 0:01:37]}  Kf7 {[%clk 0:00:03]} 36. c4 {[%clk 0:01:38]}  Ke6 {[%clk 0:00:03]} 37. cxd5+ {[%clk 0:01:38]}  cxd5 {[%clk 0:00:04]} 38. Qxa5 {[%clk 0:01:38]}  Rc6 {[%clk 0:00:04]} 39. Qa8 {[%clk 0:01:37]}  Qc3 {[%clk 0:00:04]} 40. Rxc3 {[%clk 0:01:34]}  Rxc3 {[%clk 0:00:04]} 41. Rd1 {[%clk 0:01:34]}  Rc5 {[%clk 0:00:03]} 42. b4 {[%clk 0:01:34]}  Rb5 {[%clk 0:00:03]} 43. Qc6+ {[%clk 0:01:34]}  Ke5 {[%clk 0:00:03]} 44. Qxb5 {[%clk 0:01:34]} 1-0


[Site "https://www.chess.com"]

[Event "Titled Tuesday Blitz November 22 Late 2022"]
[White "Petrovic, Aleksa"]
[Black "Jarmula, Lukasz"]
[WhiteFideId "967629"]
[BlackFideId "1160664"]
[WhiteElo "2224"]
[BlackElo "2357"]
[Result "1-0"]
[Round "07"]
[TimeControl "180+1"]
[Date "2022.11.23"]
[WhiteClock "0:00:04"]
[BlackClock "0:00:01"]

1. d4 {[%clk 0:03:00]}  e6 {[%clk 0:01:43]} 2. c4 {[%clk 0:03:00]}  b6 {[%clk 0:01:42]} 3. Nf3 {[%clk 0:02:59]}  Bb7 {[%clk 0:01:42]} 4. g3 {[%clk 0:02:59]}  Bb4+ {[%clk 0:01:40]} 5. Bd2 {[%clk 0:02:58]}  Bxf3 {[%clk 0:01:40]} 6. exf3 {[%clk 0:02:57]}  Bxd2+ {[%clk 0:01:41]} 7. Qxd2 {[%clk 0:02:57]}  Nf6 {[%clk 0:01:37]} 8. Nc3 {[%clk 0:02:56]}  d5 {[%clk 0:01:33]} 9. cxd5 {[%clk 0:02:54]}  Nxd5 {[%clk 0:01:33]} 10. Bg2 {[%clk 0:02:51]}  c6 {[%clk 0:01:31]} 11. O-O {[%clk 0:02:50]}  O-O {[%clk 0:01:31]} 12. Rac1 {[%clk 0:02:49]}  Nd7 {[%clk 0:01:29]} 13. f4 {[%clk 0:02:44]}  N7f6 {[%clk 0:01:28]} 14. Nxd5 {[%clk 0:02:36]}  cxd5 {[%clk 0:01:27]} 15. Rc6 {[%clk 0:02:35]}  Qd7 {[%clk 0:01:26]} 16. Rfc1 {[%clk 0:02:34]}  Rac8 {[%clk 0:01:25]} 17. Qc2 {[%clk 0:02:28]}  Rxc6 {[%clk 0:01:25]} 18. Qxc6 {[%clk 0:02:29]}  Qe7 {[%clk 0:01:25]} 19. Qc7 {[%clk 0:02:17]}  Qb4 {[%clk 0:01:24]} 20. Qc3 {[%clk 0:02:17]}  Qb5 {[%clk 0:01:21]} 21. Bf1 {[%clk 0:02:15]}  Qa4 {[%clk 0:01:21]} 22. b3 {[%clk 0:02:14]}  Qa3 {[%clk 0:01:17]} 23. b4 {[%clk 0:02:05]}  Qa4 {[%clk 0:01:12]} 24. Qb3 {[%clk 0:02:00]}  Qd7 {[%clk 0:01:10]} 25. Qc2 {[%clk 0:01:47]}  Ne4 {[%clk 0:01:07]} 26. b5 {[%clk 0:01:39]}  Qe7 {[%clk 0:01:03]} 27. Bd3 {[%clk 0:01:30]}  f5 {[%clk 0:01:00]} 28. Bxe4 {[%clk 0:01:14]}  fxe4 {[%clk 0:00:58]} 29. Qc7 {[%clk 0:01:12]}  Qb4 {[%clk 0:00:55]} 30. Qe5 {[%clk 0:01:08]}  Qxb5 {[%clk 0:00:38]} 31. Qxe6+ {[%clk 0:00:32]}  Kh8 {[%clk 0:00:38]} 32. Rc8 {[%clk 0:00:26]}  Qb4 {[%clk 0:00:38]} 33. Qf5 {[%clk 0:00:16]}  Rg8 {[%clk 0:00:24]} 34. Rxg8+ {[%clk 0:00:10]}  Kxg8 {[%clk 0:00:25]} 35. Qxd5+ {[%clk 0:00:10]}  Kf8 {[%clk 0:00:26]} 36. Qa8+ {[%clk 0:00:10]}  Kf7 {[%clk 0:00:21]} 37. Qxe4 {[%clk 0:00:09]}  Qb2 {[%clk 0:00:13]} 38. Qd5+ {[%clk 0:00:08]}  Kf6 {[%clk 0:00:12]} 39. Kg2 {[%clk 0:00:08]}  a5 {[%clk 0:00:12]} 40. Qe5+ {[%clk 0:00:08]}  Kf7 {[%clk 0:00:11]} 41. Qf5+ {[%clk 0:00:08]}  Ke7 {[%clk 0:00:11]} 42. d5 {[%clk 0:00:08]}  Qxa2 {[%clk 0:00:10]} 43. Qe6+ {[%clk 0:00:08]}  Kd8 {[%clk 0:00:10]} 44. Qxb6+ {[%clk 0:00:08]}  Kd7 {[%clk 0:00:10]} 45. Qc6+ {[%clk 0:00:08]}  Kd8 {[%clk 0:00:10]} 46. d6 {[%clk 0:00:08]}  Qe6 {[%clk 0:00:09]} 47. Qb6+ {[%clk 0:00:06]}  Kd7 {[%clk 0:00:09]} 48. Qc7+ {[%clk 0:00:06]}  Ke8 {[%clk 0:00:09]} 49. Qb8+ {[%clk 0:00:05]}  Kd7 {[%clk 0:00:08]} 50. Qa7+ {[%clk 0:00:05]}  Kxd6 {[%clk 0:00:07]} 51. Qxa5 {[%clk 0:00:05]}  Qe4+ {[%clk 0:00:06]} 52. Kf1 {[%clk 0:00:04]}  Qh1+ {[%clk 0:00:04]} 53. Ke2 {[%clk 0:00:05]}  Qe4+ {[%clk 0:00:05]} 54. Kd2 {[%clk 0:00:04]}  Qd4+ {[%clk 0:00:04]} 55. Ke1 {[%clk 0:00:05]}  Qe4+ {[%clk 0:00:04]} 56. Kd1 {[%clk 0:00:05]}  Qb1+ {[%clk 0:00:04]} 57. Ke2 {[%clk 0:00:05]}  Qe4+ {[%clk 0:00:03]} 58. Kd2 {[%clk 0:00:05]}  Qd4+ {[%clk 0:00:04]} 59. Ke1 {[%clk 0:00:05]}  Qe4+ {[%clk 0:00:04]} 60. Kd1 {[%clk 0:00:05]}  Qb1+ {[%clk 0:00:04]} 61. Kd2 {[%clk 0:00:04]}  Qb2+ {[%clk 0:00:04]} 62. Kd3 {[%clk 0:00:04]}  Qb1+ {[%clk 0:00:04]} 63. Ke3 {[%clk 0:00:03]}  Qb3+ {[%clk 0:00:02]} 64. Ke4 {[%clk 0:00:04]}  Qc4+ {[%clk 0:00:01]} 65. Kf3 {[%clk 0:00:04]}  Qd3+ {[%clk 0:00:01]} 66. Kg4 {[%clk 0:00:04]}  Qe2+ {[%clk 0:00:01]} 67. f3 {[%clk 0:00:04]} 1-0


[Site "https://www.chess.com"]

[Event "Titled Tuesday Blitz November 22 Late 2022"]
[White "Poliakova, Varvara"]
[Black "Mgeladze, Tamaz"]
[WhiteFideId "13518313"]
[BlackFideId "13601202"]
[WhiteElo "2099"]
[BlackElo "2288"]
[Result "0-1"]
[Round "07"]
[TimeControl "180+1"]
[Date "2022.11.23"]
[WhiteClock "0:00:09"]
[BlackClock "0:00:11"]

1. e4 {[%clk 0:02:57]}  c5 {[%clk 0:02:59]} 2. Nf3 {[%clk 0:02:56]}  Nc6 {[%clk 0:02:59]} 3. d4 {[%clk 0:02:56]}  cxd4 {[%clk 0:03:00]} 4. Nxd4 {[%clk 0:02:56]}  g6 {[%clk 0:03:00]} 5. Nc3 {[%clk 0:02:56]}  Bg7 {[%clk 0:03:00]} 6. Nb3 {[%clk 0:02:57]}  Bxc3+ {[%clk 0:03:00]} 7. bxc3 {[%clk 0:02:56]}  Nf6 {[%clk 0:03:00]} 8. Bd3 {[%clk 0:02:53]}  O-O {[%clk 0:03:00]} 9. Bh6 {[%clk 0:02:53]}  Re8 {[%clk 0:03:00]} 10. O-O {[%clk 0:02:52]}  d6 {[%clk 0:03:00]} 11. Nd4 {[%clk 0:02:50]}  Bd7 {[%clk 0:02:54]} 12. h3 {[%clk 0:02:41]}  Qa5 {[%clk 0:02:53]} 13. Bd2 {[%clk 0:02:31]}  Rac8 {[%clk 0:02:50]} 14. f4 {[%clk 0:02:26]}  a6 {[%clk 0:02:11]} 15. Nf3 {[%clk 0:02:11]}  Qa4 {[%clk 0:01:42]} 16. Qe1 {[%clk 0:02:10]}  Na5 {[%clk 0:01:37]} 17. e5 {[%clk 0:02:07]}  Nh5 {[%clk 0:01:26]} 18. Qh4 {[%clk 0:01:59]}  Nc4 {[%clk 0:01:24]} 19. Bc1 {[%clk 0:01:50]}  dxe5 {[%clk 0:01:09]} 20. fxe5 {[%clk 0:01:44]}  Nxe5 {[%clk 0:01:10]} 21. Qf2 {[%clk 0:01:32]}  Nxf3+ {[%clk 0:00:59]} 22. Qxf3 {[%clk 0:01:33]}  Be6 {[%clk 0:00:57]} 23. g4 {[%clk 0:01:23]}  Nf6 {[%clk 0:00:54]} 24. Bf4 {[%clk 0:01:16]}  Rxc3 {[%clk 0:00:49]} 25. Be5 {[%clk 0:01:15]}  Rc5 {[%clk 0:00:41]} 26. Bxf6 {[%clk 0:01:15]}  exf6 {[%clk 0:00:42]} 27. Qxf6 {[%clk 0:01:15]}  Rd5 {[%clk 0:00:34]} 28. Rf2 {[%clk 0:01:12]}  Qd4 {[%clk 0:00:32]} 29. Qxd4 {[%clk 0:01:08]}  Rxd4 {[%clk 0:00:33]} 30. a4 {[%clk 0:01:05]}  Bd7 {[%clk 0:00:25]} 31. a5 {[%clk 0:01:04]}  Bc6 {[%clk 0:00:24]} 32. Raf1 {[%clk 0:01:02]}  Re7 {[%clk 0:00:23]} 33. Rf4 {[%clk 0:00:58]}  Rxf4 {[%clk 0:00:23]} 34. Rxf4 {[%clk 0:00:59]}  Kg7 {[%clk 0:00:22]} 35. Kf2 {[%clk 0:00:59]}  Re5 {[%clk 0:00:22]} 36. Bc4 {[%clk 0:00:54]}  f6 {[%clk 0:00:22]} 37. Rd4 {[%clk 0:00:43]}  Rxa5 {[%clk 0:00:22]} 38. Rd8 {[%clk 0:00:44]}  Kh6 {[%clk 0:00:17]} 39. Rd6 {[%clk 0:00:34]}  Rc5 {[%clk 0:00:15]} 40. Bb3 {[%clk 0:00:32]}  Kg5 {[%clk 0:00:14]} 41. c4 {[%clk 0:00:20]}  h5 {[%clk 0:00:13]} 42. Kg3 {[%clk 0:00:20]}  h4+ {[%clk 0:00:13]} 43. Kf2 {[%clk 0:00:19]}  a5 {[%clk 0:00:14]} 44. Rd8 {[%clk 0:00:16]}  a4 {[%clk 0:00:14]} 45. Ba2 {[%clk 0:00:17]}  Re5 {[%clk 0:00:12]} 46. Rd2 {[%clk 0:00:12]}  Re4 {[%clk 0:00:11]} 47. Rb2 {[%clk 0:00:12]}  Rf4+ {[%clk 0:00:12]} 48. Kg1 {[%clk 0:00:12]}  Rf3 {[%clk 0:00:12]} 49. Kh2 {[%clk 0:00:12]}  Rc3 {[%clk 0:00:11]} 50. Rf2 {[%clk 0:00:11]}  Rf3 {[%clk 0:00:11]} 51. Rd2 {[%clk 0:00:10]}  a3 {[%clk 0:00:12]} 52. Re2 {[%clk 0:00:10]}  Rc3 {[%clk 0:00:11]} 53. Rd2 {[%clk 0:00:10]}  Be4 {[%clk 0:00:10]} 54. Re2 {[%clk 0:00:10]}  Rc2 {[%clk 0:00:10]} 55. Rxc2 {[%clk 0:00:10]}  Bxc2 {[%clk 0:00:11]} 56. Kg2 {[%clk 0:00:10]}  Kf4 {[%clk 0:00:11]} 57. Kf2 {[%clk 0:00:11]}  g5 {[%clk 0:00:11]} 58. c5 {[%clk 0:00:10]}  Be4 {[%clk 0:00:10]} 59. Bb3 {[%clk 0:00:08]}  Ke5 {[%clk 0:00:10]} 60. Ba2 {[%clk 0:00:09]}  Bd5 {[%clk 0:00:11]} 0-1


[Site "https://www.chess.com"]